[Event "4NCL Div 1 2024-25"]
[Site "England"]
[Date "2025.04.05"]
[Round "7.25"]
[White "Kovchan, Alexander"]
[Black "Bazakutsa, Svyatoslav"]
[Result "0-1"]
[Annotator "TA"]
[ECO "B33"]
[WhiteElo "2453"]
[BlackElo "2486"]
[PlyCount "120"]
[EventDate "2024.11.23"]
[EventType "team-tourn"]
[EventCountry "ENG"]
[SourceTitle "playchess.com"]
[Source "ChessBase"]
[SourceQuality "1"]
[TimeControl "40/6000+30:3000+30"]

{[%evp 25,120,19,30,27,30,27,23,26,28,16,39,29,34,14,39,31,35,15,15,10,12,12,11,4,29,-6,0,-7,9,0,0,-9,0,0,6,8,51,51,266,271,295,0,123,78,41,38,102,-34,225,-130,-134,-120,-121,-125,-135,-346,-347,-393,-373,-517,-345,-400,-379,-333,-395,-381,-385,-492,-479,-502,-502,-444,-451,-489,-490,-485,-458,-573,-509,-1139,-1118,-1056,-1050,-1028,-1008,-936,-927,-29979,-29980,-29980,-29981,-29981,-29982,-29984,-29986,-29983,-29984]} 1. e4 {[%emt 0:10:05]} c5 {[%emt 0:10:52]} 2. Nf3 {[%emt 0:00:07]} Nc6 {[%emt 0:00:06]} 3. d4 {[%emt 0:00:13]} cxd4 {[%emt 0:00:06]} 4. Nxd4 {[%emt 0:00:06]} Nf6 {[%emt 0:00:07]} 5. Nc3 {[%emt 0:00:06]} e5 {[%emt 0:00:11]} 6. Ndb5 {[%emt 0:00:08][%cal Bd4b5,Bb5a3,Ba3c2,Bc2e3,Be3d5][%mdl 32]} d6 {[%emt 0:00:05]} 7. Bg5 {[%emt 0:00:37]} a6 {[%emt 0:00:28]} 8. Na3 {[%emt 0:00:09]} b5 {[%emt 0:00:07]} 9. Nd5 {[%emt 0:00:09]} Be7 {[%emt 0:00:05]} 10. Bxf6 {[%emt 0:00:08]} Bxf6 {[%emt 0:00:08]} 11. c3 {[%emt 0:00:57]} O-O {[%emt 0:00:33]} 12. Nc2 {[%emt 0:01:40]} Rb8 {[%emt 0:00:18] The modern move.} 13. h4 {[%emt 0:01:16][%cal Bh2h4,Bh4h5][%mdl 32]} g6 {[%emt 0:00:27] 13...Be7 is not played anymore.} 14. g3 {[%emt 0:00:44] B33: Sicilian: Pelikan and Sveshnikov Variations.} Bg7 {[%emt 0:01:45]} 15. h5 {[%emt 0:00:46]} Ne7 {[%emt 0:00:54]} 16. Nce3 {[%emt 0:05:19] White has an edge.} Nxd5 {[%emt 0:04:35]} 17. Nxd5 {[%emt 0:00:34]} Bb7 {[%emt 0:02:15]} 18. Bh3 {[%emt 0:08:19]} Qg5 {[%emt 0:08:55]} 19. hxg6 {[%emt 0:08:12]} hxg6 {[%emt 0:03:18]} 20. Bg2 $146 {[%emt 0:07:07]} (20. Qd3 f5 21. Rd1 Rbd8 22. a4 Bc6 23. axb5 axb5 24. c4 b4 25. Bg2 Rf7 26. Nxb4 {1-0 Dominguez Perez,L (2752)-Bocharov,D (2513) Titled Tuesday intern op 30th Jan Early blitz 2024 (5)}) 20... Rfd8 {[%emt 0:24:29]} 21. Rh4 {[%emt 0:01:32]} Bxd5 {[%emt 0:17:24]} 22. Qxd5 {[%emt 0:00:32]} Rbc8 {[%emt 0:00:34]} 23. Rd1 {[%emt 0:01:28]} Qe7 {[%emt 0:04:16]} 24. a3 {[%emt 0:06:43]} Rc5 {[%emt 0:04:16]} 25. Qd3 {[%emt 0:02:57]} Bf6 {[%emt 0:02:15][%cal Bg7f6,Bf6g5,Bg5c1][%mdl 32]} 26. Rh1 {[%emt 0:00:17]} Bg5 {[%emt 0:00:41]} 27. Qe2 {[%emt 0:07:55]} Qe6 {[%emt 0:06:05]} 28. Bf3 {[%emt 0:02:59]} a5 {[%emt 0:03:10]} 29. Kf1 {[%emt 0:00:22]} Qb3 {[%emt 0:00:53]} 30. Rd3 {[%emt 0:00:41]} Bc1 {[%emt 0:08:08]} 31. Kg2 {[%emt 0:00:06]} Qxb2 {[%emt 0:00:13]} (31... Bxb2 $2 32. Qd2 (32. Rb1 Rxc3 33. Rxc3 Qxc3 $18) 32... Qe6 (32... Bxc3 33. Qh6 f5 34. Qh8+ Kf7 35. Rh7+ Ke6 36. Qxd8 fxe4 37. Bg4#) 33. Qxb2 $18) (31... Bg5 $1 $14) 32. Qd1 $1 $18 {[%emt 0:00:06][%csl LRc1,LRd6]} Bg5 {[%emt 0:00:08]} (32... Rxc3 $2 33. Rxd6 (33. Rxc3 Qxc3 34. Qxc1 Qxc1 $18) 33... Kg7 34. Rxd8 $18) 33. Rxd6 $2 {[%emt 0:00:06]} (33. Bh5 $1 $18) 33... Rcc8 {[%emt 0:00:20]} (33... Rxd6 $11 34. Qxd6 Qxc3) 34. Bg4 $1 $16 {[%emt 0:09:37]} Be7 {[%emt 0:05:31]} 35. Rd5 {[%emt 0:02:13]} Rb8 {[%emt 0:01:16]} (35... Rxd5 $2 36. Qxd5 Rxc3 37. Qxe5 $18) 36. Qf3 {[%emt 0:15:57]} (36. Be6 $1 $16 {[%cal Od1g4] Qg4! is the strong threat.} Rf8 (36... fxe6 37. Qg4 $16) 37. Qg4) 36... Rb6 $2 {[%emt 0:02:33][%mdl 8192]} (36... Rxd5 $15 37. exd5 Qxa3 (37... Bxa3 38. Qf6)) 37. Rxe5 $2 {[%emt 0:05:19] [#]} (37. Qe3 $1 $18 {[%cal Re3h6] Intending Qh6 and mate.} Rxd5 38. exd5) 37... Rf6 $1 $36 {[%emt 0:00:40][%mdl 2048] Black is in control. Active counter play!} 38. Bf5 {[%emt 0:03:05] [#]} Bf8 {[%emt 0:00:35][%cal Ob5b4]} (38... Qxa3 39. Rxb5 (39. Qg4 Bf8 $11) 39... Bf8 (39... gxf5 $2 40. Qh5 $18) 40. Qe3 $11 (40. Qg4 Bg7 $11)) 39. Qf4 {[%emt 0:00:58][%cal Og3g4]} Bg7 {[%emt 0:00:43]} ({Much less strong is} 39... gxf5 40. Rxf5 Rxf5 41. exf5 $11) 40. Qh4 $2 {[%emt 0:02:07]} (40. Rc5 $17) 40... gxf5 $19 {[%emt 0:00:30]} 41. Rxf5 {[%emt 0:50:17]} Qxc3 {[%emt 0:25:51]} 42. Rb1 {[%emt 0:00:00]} Rb8 {[%emt 0:10:05]} 43. Qf4 {[%emt 0:00:00]} Rbb6 {[%emt 0:00:44]} 44. Rd1 {[%emt 0:00:00]} Rxf5 {[%emt 0:05:24]} (44... Qxa3 45. Rd8+ Kh7 46. Rh5+ Rh6 47. Qxf7 Rxh5 48. Qxh5+ Rh6 49. Qf5+ Rg6 50. Qh5+ Rh6 51. Qf5+ Rg6 52. Qh5+ Rh6 $14) 45. Rd8+ {[%emt 0:00:00]} Bf8 {[%emt 0:00:15]} 46. exf5 {[%emt 0:00:00]} Qc6+ {[%emt 0:02:26]} ({And not} 46... Qxa3 47. f6 (47. Qg5+ Kh7 $11) 47... Qc5 48. Qg4+ Kh7 49. Qe4+ Kh8 50. Qe7 Qc6+ 51. Kh2 Qxf6 52. Qxf8+ Kh7 53. Qg8+ Kh6 54. Qf8+ Kg6 55. f4 Qb2+ 56. Kh3 $11) 47. Kg1 {[%emt 0:00:00]} Qh6 {[%emt 0:00:36] Prevents Qg5+.} 48. Qg4+ {[%emt 0:00:00]} Qg7 {[%emt 0:00:50]} 49. Qd1 {[%emt 0:00:00]} b4 {[%emt 0:01:28]} 50. axb4 {[%emt 0:00:00]} axb4 {[%emt 0:00:12]} 51. Rd4 {[%emt 0:00:00]} Qf6 {[%emt 0:02:08][%cal Ob4b3]} 52. Qg4+ {[%emt 0:00:00]} (52. Rg4+ $142 Bg7 53. Qd5) 52... Kh7 {[%emt 0:02:20]} 53. Qh5+ {[%emt 0:02:07]} Bh6 {[%emt 0:00:12]} 54. Rd7 {[%emt 0:01:48]} Kg8 {[%emt 0:00:42]} 55. Qg4+ {[%emt 0:00:58]} Bg7 {[%emt 0:00:51] And now ...b3 would win.} 56. Ra7 {[%emt 0:00:05]} b3 {[%emt 0:01:44] Black mates.} 57. Ra8+ {[%emt 0:00:07]} Kh7 {[%emt 0:00:04]} 58. Qh5+ {[%emt 0:00:12]} Qh6 {[%emt 0:01:46]} 59. Qxf7 {[%emt 0:01:24]} Qc1+ {[%emt 0:00:06]} 60. Kg2 {[%emt 0:00:04]} Qc6+ {[%emt 0:00:06] Never resign too early!   Weighted Error Value: White=0.60/Black=0.23 (precise)   Loses game:     	White=1     	Black=2      Missed win:     	White=2     	---        Mistake:       	White=2     	Black=1      Inaccurate:     	White=2     	Black=2      OK:         	White=15    	Black=13     Best:        	White=1     	Black=6      Strong:       	White=1     	Black=1} 0-1

[Event "4NCL Div 1 2024-25"]
[Site "England"]
[Date "2025.04.05"]
[Round "7.26"]
[White "Czopor, Maciej"]
[Black "Badacsonyi, Frankie"]
[Result "1/2-1/2"]
[Annotator "RC"]
[ECO "A28"]
[WhiteElo "2383"]
[BlackElo "2266"]
[PlyCount "29"]
[EventDate "2024.11.23"]
[EventType "team-tourn"]
[EventCountry "ENG"]
[SourceTitle "playchess.com"]
[Source "ChessBase"]
[SourceQuality "1"]
[TimeControl "40/6000+30:3000+30"]

1. c4 {[%emt 0:10:04]} e5 {[%emt 0:11:07]} 2. Nc3 {[%emt 0:00:09]} Nf6 {[%emt 0:00:33]} 3. Nf3 {[%emt 0:03:02]} Nc6 {[%emt 0:00:46]} 4. e3 {[%emt 0:00:15]} Bb4 {[%emt 0:02:57]} 5. Qc2 {[%emt 0:01:47]} Bxc3 {[%emt 0:00:15]} 6. Qxc3 {[%emt 0:00:50]} Qe7 {[%emt 0:00:49]} 7. d3 {[%emt 0:07:10]} d5 {[%emt 0:05:42]} 8. cxd5 {[%emt 0:03:48]} Nxd5 {[%emt 0:00:07]} 9. Qb3 {[%emt 0:00:52]} Qb4+ {[%emt 0:04:33]} 10. Nd2 {[%emt 0:19:18]} Qxb3 {[%emt 0:04:07]} 11. Nxb3 {[%emt 0:00:04]} Ndb4 {[%emt 0:00:10]} 12. Kd2 {[%emt 0:00:17]} Bf5 {[%emt 0:09:51]} 13. Kc3 {[%emt 0:09:34]} Nd5+ {[%emt 0:02:26]} 14. Kd2 {[%emt 0:02:20]} Ndb4 {[%emt 0:00:08]} 15. Kc3 {[%emt 0:00:22]} 1/2-1/2

[Event "4NCL Div 1 2024-25"]
[Site "England"]
[Date "2025.04.05"]
[Round "7.27"]
[White "Badacsonyi, Stanley"]
[Black "Willow, Jonah B"]
[Result "0-1"]
[Annotator "RC"]
[ECO "D90"]
[WhiteElo "2298"]
[BlackElo "2454"]
[PlyCount "108"]
[EventDate "2024.11.23"]
[EventType "team-tourn"]
[EventCountry "ENG"]
[SourceTitle "playchess.com"]
[Source "ChessBase"]
[SourceQuality "1"]
[TimeControl "40/6000+30:3000+30"]

1. d4 {[%emt 0:10:02]} Nf6 {[%emt 0:11:00]} 2. c4 {[%emt 0:00:06]} g6 {[%emt 0:01:24]} 3. Nc3 {[%emt 0:00:13]} d5 {[%emt 0:01:23]} 4. Nf3 {[%emt 0:00:05]} Bg7 {[%emt 0:00:06]} 5. h4 {[%emt 0:00:02]} dxc4 {[%emt 0:00:41]} 6. e4 {[%emt 0:00:05]} O-O {[%emt 0:00:38]} 7. h5 {[%emt 0:05:58]} Nxh5 {[%emt 0:00:26]} 8. Bxc4 {[%emt 0:01:11]} Bg4 {[%emt 0:00:06]} 9. Be3 {[%emt 0:07:11]} Nd7 {[%emt 0:00:27]} 10. Qd2 {[%emt 0:06:13]} Bxf3 {[%emt 0:12:34]} 11. gxf3 {[%emt 0:00:02]} Nb6 {[%emt 0:02:58]} 12. Bb3 {[%emt 0:02:07]} e5 {[%emt 0:01:29]} 13. d5 {[%emt 0:00:40]} Qf6 {[%emt 0:10:57]} 14. O-O-O {[%emt 0:15:48]} Nf4 {[%emt 0:07:54]} 15. Kb1 {[%emt 0:03:56]} c6 {[%emt 0:02:00]} 16. dxc6 {[%emt 0:11:16]} bxc6 {[%emt 0:01:47]} 17. Bc5 {[%emt 0:02:31]} Rfd8 {[%emt 0:02:36]} 18. Qe3 {[%emt 0:00:05]} Ng2 {[%emt 0:05:09]} 19. Qc1 {[%emt 0:06:37]} h5 {[%emt 0:02:43]} 20. a4 {[%emt 0:03:15]} Nf4 {[%emt 0:09:18]} 21. Be3 {[%emt 0:06:38]} Nd7 {[%emt 0:05:15]} 22. Rhg1 {[%emt 0:03:20]} Rab8 {[%emt 0:05:30]} 23. Ba2 {[%emt 0:02:02]} a5 {[%emt 0:00:32]} 24. Rd2 {[%emt 0:04:16]} Nf8 {[%emt 0:00:53]} 25. Rxd8 {[%emt 0:00:17]} Rxd8 {[%emt 0:00:24]} 26. Bb6 {[%emt 0:02:58]} Rb8 {[%emt 0:06:00]} 27. Qe3 {[%emt 0:00:04]} Bh6 {[%emt 0:07:23]} 28. Bxa5 {[%emt 0:01:52]} Nh3 {[%emt 0:01:17]} 29. Qa7 {[%emt 0:00:06]} Nxg1 {[%emt 0:02:21]} 30. Qxb8 {[%emt 0:00:05]} Qf4 {[%emt 0:02:24]} 31. Bc4 {[%emt 0:01:53]} h4 {[%emt 0:01:11]} 32. Bb6 {[%emt 0:00:51]} Qxf3 {[%emt 0:04:42]} 33. Bc7 {[%emt 0:01:34]} Qxf2 {[%emt 0:00:57]} 34. Bb6 {[%emt 0:04:04]} Be3 {[%emt 0:00:01]} 35. Bxf7+ {[%emt 0:03:29]} Qxf7 {[%emt 0:00:48]} 36. Bxe3 {[%emt 0:00:04]} h3 {[%emt 0:00:45]} 37. Bxg1 {[%emt 0:02:16]} Qf1+ {[%emt 0:00:04]} 38. Ka2 {[%emt 0:00:03]} Qxg1 {[%emt 0:00:03]} 39. Qb3+ {[%emt 0:00:02]} Kg7 {[%emt 0:00:10]} 40. Qb7+ {[%emt 0:00:07]} Kg8 {[%emt 0:00:09]} 41. Qb3+ {[%emt 0:50:16]} Kg7 {[%emt 0:52:14]} 42. Qb7+ {[%emt 0:02:38]} Kh6 {[%emt 0:00:00]} 43. Qc8 {[%emt 0:00:00]} Qf1 {[%emt 0:00:00]} 44. Qg4 {[%emt 0:00:00]} g5 {[%emt 0:00:00]} 45. Ne2 {[%emt 0:00:00]} h2 {[%emt 0:00:00]} 46. Ng3 {[%emt 0:00:00]} h1=Q {[%emt 0:00:00]} 47. Nxh1 {[%emt 0:00:00]} Qxh1 {[%emt 0:00:00]} 48. Qf5 {[%emt 0:00:00]} Ng6 {[%emt 0:00:00]} 49. b3 {[%emt 0:00:00]} Qd1 {[%emt 0:00:00]} 50. Qh3+ {[%emt 0:00:00]} Kg7 {[%emt 0:00:00]} 51. Qf5 {[%emt 0:00:00]} g4 {[%emt 0:00:00]} 52. a5 {[%emt 0:00:00]} Qd2+ {[%emt 0:00:00]} 53. Kb1 {[%emt 0:00:00]} g3 {[%emt 0:00:00]} 54. Qg4 {[%emt 0:00:00]} g2 {[%emt 0:00:00]} 0-1

[Event "4NCL Div 1 2024-25"]
[Site "England"]
[Date "2025.04.05"]
[Round "7.28"]
[White "Golding, Alex"]
[Black "Yoon, Jacob D"]
[Result "1-0"]
[Annotator "RC"]
[ECO "B12"]
[WhiteElo "2404"]
[BlackElo "2270"]
[PlyCount "109"]
[EventDate "2024.11.23"]
[EventType "team-tourn"]
[EventCountry "ENG"]
[SourceTitle "playchess.com"]
[Source "ChessBase"]
[SourceQuality "1"]
[TimeControl "40/6000+30:3000+30"]

1. e4 {[%emt 0:10:04]} c6 {[%emt 0:10:07]} 2. d4 {[%emt 0:00:11]} d5 {[%emt 0:00:04]} 3. e5 {[%emt 0:00:06]} c5 {[%emt 0:00:04]} 4. dxc5 {[%emt 0:02:53]} e6 {[%emt 0:00:06]} 5. Be3 {[%emt 0:01:29]} Nd7 {[%emt 0:00:05]} 6. Bb5 {[%emt 0:02:59]} Ne7 {[%emt 0:00:27]} 7. Nf3 {[%emt 0:03:12]} Nc6 {[%emt 0:02:25]} 8. O-O {[%emt 0:16:51]} Bxc5 {[%emt 0:04:35]} 9. Bxc5 {[%emt 0:00:15]} Nxc5 {[%emt 0:00:06]} 10. Nbd2 {[%emt 0:08:21]} Qb6 {[%emt 0:05:40]} 11. Qe2 {[%emt 0:02:52]} a6 {[%emt 0:01:23]} 12. Bxc6+ {[%emt 0:01:53]} bxc6 {[%emt 0:00:12]} 13. Qe3 {[%emt 0:16:11]} Rb8 {[%emt 0:03:32]} 14. c4 {[%emt 0:14:06]} Nd7 {[%emt 0:06:08]} 15. Qg5 {[%emt 0:02:27]} O-O {[%emt 0:00:12]} 16. b3 {[%emt 0:00:19]} a5 {[%emt 0:04:27]} 17. Rfd1 {[%emt 0:03:06]} Nc5 {[%emt 0:00:31]} 18. Qe3 {[%emt 0:01:01]} Ba6 {[%emt 0:00:40]} 19. Rac1 {[%emt 0:02:02]} Rfc8 {[%emt 0:01:11]} 20. Rc3 {[%emt 0:00:57]} Nd7 {[%emt 0:00:44]} 21. c5 {[%emt 0:02:18]} Qb4 {[%emt 0:05:03]} 22. Rdc1 {[%emt 0:03:21]} Qg4 {[%emt 0:10:40]} 23. h3 {[%emt 0:01:25]} Qh5 {[%emt 0:00:05]} 24. Re1 {[%emt 0:01:17]} Nf8 {[%emt 0:04:05]} 25. Nd4 {[%emt 0:00:45]} Ng6 {[%emt 0:03:13]} 26. N2f3 {[%emt 0:03:36]} Nh4 {[%emt 0:07:22]} 27. a3 {[%emt 0:00:22]} Nxf3+ {[%emt 0:01:43]} 28. Nxf3 {[%emt 0:00:06]} Rc7 {[%emt 0:02:07]} 29. Qd2 {[%emt 0:01:55]} Bc8 {[%emt 0:03:04]} 30. Kh2 {[%emt 0:01:50]} Rcb7 {[%emt 0:02:57]} 31. Nd4 {[%emt 0:00:56]} Bd7 {[%emt 0:00:10]} 32. f4 {[%emt 0:01:26]} Qg6 {[%emt 0:06:47]} 33. g4 {[%emt 0:01:12]} h5 {[%emt 0:01:02]} 34. Rg3 {[%emt 0:01:33]} Qh6 {[%emt 0:00:50]} 35. g5 {[%emt 0:02:06]} Qg6 {[%emt 0:00:25]} 36. Qxa5 {[%emt 0:00:22]} h4 {[%emt 0:00:14]} 37. Rge3 {[%emt 0:00:35]} Rxb3 {[%emt 0:00:38]} 38. Nxb3 {[%emt 0:00:59]} Rxb3 {[%emt 0:00:09]} 39. Qd2 {[%emt 0:00:25]} Rxe3 {[%emt 0:00:29]} 40. Rxe3 {[%emt 0:00:54]} Qb1 {[%emt 0:00:03]} 41. Re1 {[%emt 0:26:07]} Qb3 {[%emt 0:20:14]} 42. Qe3 {[%emt 0:00:05]} Qc2+ {[%emt 0:01:00]} 43. Re2 {[%emt 0:00:05]} Qb1 {[%emt 0:01:01]} 44. Qf2 {[%emt 0:00:21]} Qd3 {[%emt 0:09:58]} 45. Rb2 {[%emt 0:02:40]} Qxa3 {[%emt 0:00:04]} 46. Rb8+ {[%emt 0:00:40]} Kh7 {[%emt 0:00:04]} 47. Rd8 {[%emt 0:01:49]} Qa7 {[%emt 0:00:18]} 48. Qxh4+ {[%emt 0:06:50]} Kg6 {[%emt 0:00:07]} 49. Qf2 {[%emt 0:00:15]} Kh7 {[%emt 0:00:13]} 50. Rf8 {[%emt 0:05:46]} Qa4 {[%emt 0:00:45]} 51. Rxf7 {[%emt 0:01:01]} Bc8 {[%emt 0:00:22]} 52. Rf8 {[%emt 0:01:19]} Qa6 {[%emt 0:00:57]} 53. g6+ {[%emt 0:00:13]} Kxg6 {[%emt 0:00:05]} 54. Qg3+ {[%emt 0:00:05]} Kh5 {[%emt 0:00:18]} 55. Rh8# {[%emt 0:00:37]} 1-0

[Event "4NCL Div 1 2024-25"]
[Site "England"]
[Date "2025.04.05"]
[Round "7.29"]
[White "Villiers, Thomas"]
[Black "Fitzsimons, David"]
[Result "0-1"]
[Annotator "ChessBase"]
[ECO "C13"]
[WhiteElo "2182"]
[BlackElo "2317"]
[PlyCount "72"]
[EventDate "2024.11.23"]
[EventType "team-tourn"]
[EventCountry "ENG"]
[SourceTitle "playchess.com"]
[Source "ChessBase"]
[SourceQuality "1"]
[TimeControl "40/6000+30:3000+30"]

1. e4 {[%emt 0:11:52]} e6 {[%emt 0:10:09]} 2. d4 {[%emt 0:02:31]} d5 {[%emt 0:00:09]} 3. Nc3 {[%emt 0:00:08]} Nf6 {[%emt 0:00:08]} 4. Bg5 {[%emt 0:00:37]} dxe4 {[%emt 0:00:16]} 5. Nxe4 {[%emt 0:00:11]} Bd7 {[%emt 0:00:09]} 6. Nxf6+ {[%emt 0:01:22]} gxf6 {[%emt 0:00:07]} 7. Bh4 {[%emt 0:00:54]} Bc6 {[%emt 0:02:45]} 8. Nf3 {[%emt 0:11:07]} Qe7 {[%emt 0:05:43]} 9. c3 {[%emt 0:06:05]} Bg7 {[%emt 0:10:56]} 10. Ne5 {[%emt 0:03:03]} O-O {[%emt 0:01:10]} 11. Bd3 {[%emt 0:01:49]} Rd8 {[%emt 0:11:25]} 12. Qh5 {[%emt 0:12:01]} h6 {[%emt 0:02:02]} 13. O-O {[%emt 0:01:35]} Qf8 {[%emt 0:08:38]} 14. f4 {[%emt 0:10:57]} Rd5 {[%emt 0:11:58]} 15. Bc4 {[%emt 0:02:59]} fxe5 {[%emt 0:00:59]} 16. Bxd5 {[%emt 0:01:17]} Bxd5 {[%emt 0:00:10]} 17. fxe5 {[%emt 0:00:15]} Be4 {[%emt 0:01:34]} 18. Rf4 {[%emt 0:02:37]} Bg6 {[%emt 0:01:04]} 19. Qf3 {[%emt 0:00:27]} Nc6 {[%emt 0:02:28]} 20. Rf1 {[%emt 0:00:21]} Rb8 {[%emt 0:06:53]} 21. Bf6 {[%emt 0:04:18]} Ne7 {[%emt 0:00:43]} 22. h4 {[%emt 0:02:46]} h5 {[%emt 0:01:37]} 23. g4 {[%emt 0:02:15]} Nd5 {[%emt 0:08:46]} 24. gxh5 {[%emt 0:00:16]} Nxf4 {[%emt 0:00:53]} 25. hxg6 {[%emt 0:13:07]} Nxg6 {[%emt 0:01:22]} 26. Qg4 {[%emt 0:01:34]} Ne7 {[%emt 0:08:53]} 27. Rf2 {[%emt 0:03:43]} Nf5 {[%emt 0:01:02]} 28. Rg2 {[%emt 0:00:16]} Kh7 {[%emt 0:00:53]} 29. Qh5+ {[%emt 0:01:30]} Bh6 {[%emt 0:00:39]} 30. b4 {[%emt 0:02:13]} Qe8 {[%emt 0:02:46]} 31. Rg5 {[%emt 0:03:04]} Qd7 {[%emt 0:01:09]} 32. d5 {[%emt 0:03:14]} Rg8 {[%emt 0:00:42]} 33. Kh2 {[%emt 0:01:08]} Rg6 {[%emt 0:04:36]} 34. c4 {[%emt 0:00:22]} Ng7 {[%emt 0:03:01]} 35. Qg4 {[%emt 0:00:15]} Bxg5 {[%emt 0:00:30]} 36. hxg5 {[%emt 0:00:18]} b5 {[%emt 0:00:17]} 0-1

[Event "4NCL Div 1 2024-25"]
[Site "England"]
[Date "2025.04.05"]
[Round "7.30"]
[White "Arakhamia-Grant, Ketevan"]
[Black "Josse, Mark"]
[Result "1-0"]
[Annotator "ChessBase"]
[ECO "B42"]
[WhiteElo "2253"]
[BlackElo "2141"]
[PlyCount "105"]
[EventDate "2024.11.23"]
[EventType "team-tourn"]
[EventCountry "ENG"]
[SourceTitle "playchess.com"]
[Source "ChessBase"]
[SourceQuality "1"]
[TimeControl "40/6000+30:3000+30"]

1. e4 {[%emt 0:10:02]} c5 {[%emt 0:10:29]} 2. Nf3 {[%emt 0:00:05]} e6 {[%emt 0:00:26]} 3. d4 {[%emt 0:00:04]} cxd4 {[%emt 0:00:08]} 4. Nxd4 {[%emt 0:00:03]} a6 {[%emt 0:00:12]} 5. Bd3 {[%emt 0:00:08]} Bc5 {[%emt 0:00:40]} 6. Nb3 {[%emt 0:00:04]} Ba7 {[%emt 0:00:09]} 7. Qe2 {[%emt 0:00:19]} d6 {[%emt 0:01:10]} 8. Be3 {[%emt 0:00:09]} Nf6 {[%emt 0:01:55]} 9. Nc3 {[%emt 0:00:31]} Nc6 {[%emt 0:00:53]} 10. f4 {[%emt 0:02:47]} Bxe3 {[%emt 0:26:53]} 11. Qxe3 {[%emt 0:00:31]} e5 {[%emt 0:01:22]} 12. f5 {[%emt 0:01:31]} b5 {[%emt 0:15:25]} 13. O-O-O {[%emt 0:01:26]} b4 {[%emt 0:06:42]} 14. Nd5 {[%emt 0:15:44]} Nxd5 {[%emt 0:02:00]} 15. exd5 {[%emt 0:00:07]} Nb8 {[%emt 0:10:19]} 16. g4 {[%emt 0:04:26]} Bb7 {[%emt 0:09:29]} 17. Kb1 {[%emt 0:09:27]} Nd7 {[%emt 0:00:36]} 18. g5 {[%emt 0:00:32]} Qb6 {[%emt 0:03:03]} 19. Qf3 {[%emt 0:19:22]} O-O-O {[%emt 0:06:18]} 20. h4 {[%emt 0:07:34]} Kb8 {[%emt 0:00:39]} 21. h5 {[%emt 0:01:42]} a5 {[%emt 0:01:40]} 22. h6 {[%emt 0:02:44]} g6 {[%emt 0:00:28]} 23. Rh4 {[%emt 0:00:28]} a4 {[%emt 0:02:47]} 24. Nd2 {[%emt 0:00:12]} Qc5 {[%emt 0:01:21]} 25. Ne4 {[%emt 0:23:04]} Qb6 {[%emt 0:03:59]} 26. Bc4 {[%emt 0:05:29]} Rc8 {[%emt 0:00:07]} 27. b3 {[%emt 0:00:44]} Rc7 {[%emt 0:00:46]} 28. fxg6 {[%emt 0:04:03]} fxg6 {[%emt 0:00:05]} 29. Qf2 {[%emt 0:00:20]} Nc5 {[%emt 0:02:50]} 30. Qf6 {[%emt 0:00:31]} Nxe4 {[%emt 0:00:46]} 31. Rxe4 {[%emt 0:00:34]} Rhc8 {[%emt 0:00:27]} 32. Rxe5 {[%emt 0:00:53]} Rxc4 {[%emt 0:00:51]} 33. bxc4 {[%emt 0:00:05]} b3 {[%emt 0:00:08]} 34. cxb3 {[%emt 0:00:17]} axb3 {[%emt 0:00:11]} 35. Re2 {[%emt 0:00:31]} Rxc4 {[%emt 0:00:45]} 36. Rb2 {[%emt 0:01:22]} bxa2+ {[%emt 0:01:20]} 37. Ka1 {[%emt 0:00:15]} Qc7 {[%emt 0:00:58]} 38. Qf8+ {[%emt 0:00:36]} Ka7 {[%emt 0:00:10]} 39. Rxa2+ {[%emt 0:00:19]} Ba6 {[%emt 0:00:06]} 40. Qf2+ {[%emt 0:00:47]} Qb6 {[%emt 0:01:07]} 41. Rb1 {[%emt 0:25:23]} Qxf2 {[%emt 0:22:23]} 42. Rxf2 {[%emt 0:01:42]} Ra4+ {[%emt 0:01:19]} 43. Kb2 {[%emt 0:02:47]} Rb4+ {[%emt 0:04:01]} 44. Kc1 {[%emt 0:00:05]} Rc4+ {[%emt 0:00:26]} 45. Kd2 {[%emt 0:00:43]} Rd4+ {[%emt 0:00:14]} 46. Ke3 {[%emt 0:00:24]} Rd3+ {[%emt 0:01:27]} 47. Ke4 {[%emt 0:00:13]} Ra3 {[%emt 0:01:23]} 48. Rf7+ {[%emt 0:00:52]} Ka8 {[%emt 0:00:09]} 49. Rb6 {[%emt 0:01:00]} Ra4+ {[%emt 0:02:43]} 50. Ke3 {[%emt 0:00:11]} Ra3+ {[%emt 0:00:43]} 51. Kd2 {[%emt 0:00:09]} Ra2+ {[%emt 0:01:03]} 52. Kc3 {[%emt 0:00:07]} Ra3+ {[%emt 0:02:21]} 53. Kb2 {[%emt 0:02:24]} 1-0